lending/lending_fUSD_20260101
["ID","MTS","AMOUNT","RATE_DAILY","PERIOD"]
[400295982,1767303076140,500.0,0.00043117,120]
[400295983,1767303076758,500.0,0.00043117,120]
[400295984,1767303126128,500.0,0.00043117,120]
[400295985,1767303127771,620.0,0.00043117,120]
[400295986,1767303133820,202.15867068,0.00043117,120]
[400295987,1767303135211,339.4020486,0.00043117,120]
[400295988,1767303144210,1108.14,8.061e-05,2]
[400295989,1767303144409,1108.14,8.486e-05,2]
[400295990,1767303144618,1108.14,8.91e-05,2]
[400295991,1767303144855,1108.14,9.334e-05,2]
[400295992,1767303145119,1108.14,9.759e-05,2]
[400295993,1767303145275,1108.14,0.00010183,2]
[400295994,1767303145486,1108.14,0.00010607,2]
[400295997,1767303327529,50000.0,0.00043117,38]
[400295998,1767303337088,50000.0,0.00043117,39]
[400296000,1767303785735,500.0,0.00043109,120]
[400296001,1767303786329,500.0,0.00043109,120]
[400296002,1767303786931,500.0,0.00043109,120]
[400296003,1767303787531,500.0,0.00043109,120]
[400296004,1767303788129,500.0,0.00043109,120]
[400296005,1767303788729,500.0,0.00043109,120]
[400296006,1767303789343,500.0,0.00043109,120]
[400296007,1767303789939,500.0,0.00043109,120]
[400296008,1767303790548,500.0,0.00043109,120]
[400296009,1767303791151,500.0,0.00043109,120]
[400296010,1767303791748,500.0,0.00043109,120]
[400296011,1767304155166,-1108.14,0.00011032,2]
[400296012,1767304155187,-250.0,0.00011032,2]
[400296013,1767304155208,-40.02431431,0.00011032,2]
[400296018,1767304231334,-240.0,0.00011032,2]
[400296020,1767304231344,-1108.14,0.00011456,2]
[400296022,1767304231354,-167.78,0.00011557,2]
[400296024,1767304231364,-331.32068336,0.0001178,2]
[400296025,1767304231374,-1108.14,0.0001188,2]
[400296026,1767304231384,-296.68967572,0.00012135,2]
[400296027,1767304231395,-250.0,0.00012135,2]
[400296028,1767304231405,-250.0,0.00012135,2]
[400296029,1767304231414,-250.0,0.00012135,2]
[400296030,1767304231425,-182.62916029,0.00012304,2]
[400296031,1767304231549,-925.51083971,0.00012304,2]
[400296032,1767304231559,-300.0,0.00012728,2]
[400296033,1767304231570,-1108.14,0.00012729,2]
[400296034,1767304231580,-1200.0,0.00013089,2]
[400296035,1767304231590,-331.32068335,0.0001309,2]
[400296036,1767304231599,-1108.14,0.00013153,2]
[400296037,1767304231609,-300.0,0.00013576,2]
[400296038,1767304231619,-300.0,0.00013576,2]
[400296039,1767304231629,-1108.14,0.00013577,2]
[400296040,1767304231639,-500.0,0.00013698,2]
[400296041,1767304231648,-500.0,0.00013698,2]
[400296042,1767304231658,-200.0,0.00013842,2]
[400296043,1767304231667,-254.31522783,0.00013842,2]
[400296044,1767304231678,-151.06250467,0.00013842,2]
[400296045,1767304231693,-1108.14,0.00014002,2]
[400296046,1767304231703,-500.0,0.00014113,2]
[400296047,1767304231713,-427.54,0.00014249,2]
[400296048,1767304231723,-150.0,0.00014272,2]
[400296049,1767304231734,-748.0,0.00014398,2]
[400296050,1767304231743,-331.32068335,0.000144,2]
[400296051,1767304231753,-1108.14,0.00014426,2]
[400296052,1767304231763,-250.91960804,0.00014454,2]
[400296053,1767304231775,-249.08039196,0.00014454,2]
[400296054,1767304231786,-2494.14,0.00014454,2]
[400296055,1767304231797,-999.0,0.00014454,3]
[400296057,1767304231806,-170.82,0.00014484,2]
[400296058,1767304231816,-500.0,0.00014498,2]
[400296059,1767304231826,-500.0,0.00014498,2]
[400296060,1767304231835,-500.0,0.00014498,2]
[400296061,1767304231845,-500.0,0.00014498,2]
[400296062,1767304231855,-421.08185112,0.00014498,2]
[400296063,1767304231864,-500.0,0.00014498,2]
[400296064,1767304231874,-500.0,0.00014498,2]
[400296065,1767304231883,-500.0,0.00014498,2]
[400296066,1767304231893,-500.0,0.00014498,2]
[400296067,1767304231903,-500.0,0.00014498,2]
[400296068,1767304231912,-500.0,0.00014498,2]
[400296069,1767304231921,-500.0,0.00014498,2]
[400296070,1767304231931,-500.0,0.00014498,2]
[400296071,1767304231940,-500.0,0.00014498,2]
[400296072,1767304231950,-500.0,0.00014498,2]
[400296074,1767304231960,-500.0,0.00014498,2]
[400296076,1767304231969,-500.0,0.00014498,2]
[400296078,1767304231978,-263.39,0.00014498,2]
[400296080,1767304231988,-500.0,0.00014498,2]
[400296082,1767304231998,-1000.0,0.00014499,2]
[400296084,1767304232007,-1000.0,0.00014499,2]
[400296086,1767304232016,-18305.41560901,0.000145,2]
[400296088,1767304232029,-405.95789884,0.000145,2]
[400296091,1767304232044,-10671.74692109,0.000145,2]
[400296111,1767304237436,-2978.91,0.000145,2]
[400296112,1767304237494,-1137.5880499,0.000145,2]
[400296113,1767304237506,-484.00000004,0.000145,2]
[400296115,1767304237603,-475.6788593,0.000145,2]
[400296131,1767304239480,-565.03985916,0.000145,2]
[400296132,1767304239492,-448.795,0.000145,2]
[400296133,1767304239504,-1394.09216956,0.000145,2]
[400296134,1767304239515,-467.97099624,0.000145,2]
[400296141,1767304243808,-1162.032134,0.000145,2]
[400296142,1767304243864,-257.41840105,0.000145,2]
[400296143,1767304243876,-299.99,0.000145,2]
[400296144,1767304243887,-288.76872577,0.000145,2]
[400296145,1767304243898,-1314.64315488,0.000145,2]
[400296146,1767304243907,-510.36426481,0.000145,2]
[400296147,1767304243917,-263.39,0.00014772,2]
[400296149,1767304243927,-11.60258031,0.0001485,2]
[400296157,1767304245400,-1096.53741969,0.0001485,2]
[400296158,1767304245411,-263.39,0.00015046,2]
[400296159,1767304245421,-168.0,0.00015055,2]
[400296160,1767304245431,-1048.448,0.00015148,2]
[400296161,1767304245441,-202.876,0.00015148,2]
[400296162,1767304245452,-913.0,0.00015253,2]
[400296163,1767304245462,-1104.27365607,0.00015275,2]
[400296176,1767304266041,500.0,0.00043109,120]
[400296177,1767304266605,500.0,0.00043109,120]
[400296178,1767304266989,250.0,0.00043109,120]
[400296179,1767304267194,500.0,0.00043109,120]
[400296180,1767304267605,250.0,0.00043109,120]
[400296181,1767304268070,500.0,0.00043109,120]
[400296182,1767304268194,250.0,0.00043109,120]
[400296183,1767304268376,151.0,0.00043109,120]
[400296184,1767304268997,151.0,0.00043109,120]
[400296185,1767304269618,151.0,0.00043109,120]
[400296186,1767304270233,151.0,0.00043109,120]
[400296187,1767304270859,151.0,0.00043109,120]
[400296188,1767304271788,250.0,0.00043109,120]
[400296189,1767304272428,250.0,0.00043109,120]
[400296190,1767304273043,250.0,0.00043109,120]
[400296191,1767304273487,500.0,0.00043109,120]
[400296192,1767304273673,250.0,0.00043109,120]
[400296193,1767304274102,500.0,0.00043109,120]
[400296194,1767304274276,250.0,0.00043109,120]
[400296195,1767304274705,500.0,0.00043109,120]
[400296196,1767304274883,250.0,0.00043109,120]
[400296197,1767304275326,500.0,0.00043109,120]
[400296198,1767304325563,403.86253867,0.00043109,120]
[400296199,1767304325749,200.0,0.00043109,120]
[400296200,1767304331053,200.0,0.00043109,120]
[400296201,1767304335565,208.44399176,0.00043109,120]
[400296202,1767304441294,231.51796105,0.00043109,30]
[400296203,1767304561521,500.0,0.00043109,120]
[400296204,1767304839706,500.0,0.00043177,120]
[400296205,1767304840305,500.0,0.00043177,120]
[400296206,1767304840550,500.0,0.00043177,120]
[400296207,1767304840786,500.0,0.00043177,120]
[400296208,1767304860896,500.0,0.00043177,120]
[400296209,1767305161420,500.0,0.00043177,120]
[400296211,1767305304550,50000.0,0.00043177,40]
[400296223,1767305431509,-461.17361602,0.00012944,2]
[400296225,1767305431521,-738.82638398,0.00012944,2]
[400296226,1767305431531,-300.0,0.00012944,2]
[400296227,1767305431540,-1200.0,0.00012944,2]
[400296228,1767305431549,-300.0,0.00012944,2]
[400296229,1767305431558,-256.0,0.00012944,2]
[400296230,1767305431568,-233.61591145,0.00012945,2]
[400296231,1767305431578,-250.0,0.00012945,2]
[400296232,1767305431588,-150.0,0.00012945,2]
[400296233,1767305431597,-150.0,0.00012945,2]
[400296234,1767305431608,-150.00000001,0.00012945,2]
[400296235,1767305431618,-60.49116864,0.00012945,2]
[400296236,1767305431630,-91.44201414,0.00012945,2]
[400296237,1767305431639,-150.0,0.00012945,2]
[400296238,1767305431649,-150.0,0.00012945,2]
[400296239,1767305431658,-150.0,0.00012945,2]
[400296240,1767305431668,-150.0,0.00012945,2]
[400296241,1767305431678,-281.39350691,0.00012945,2]
[400296242,1767305431690,-150.0,0.00012945,2]
[400296243,1767305431700,-150.0,0.00012945,2]
[400296244,1767305431714,-150.0,0.00012945,2]
[400296245,1767305431724,-150.0,0.00012945,2]
[400296246,1767305431733,-150.0,0.00012945,2]
[400296247,1767305431743,-151.33216494,0.00012945,2]
[400296249,1767305431753,-200.0,0.00012968,2]
[400296251,1767305431763,-228.92459467,0.00013048,2]
[400296253,1767305431773,-126.99120863,0.00013151,2]
[400296256,1767305431786,-23.00879137,0.00013151,2]
[400296258,1767305431796,-150.0,0.00013233,2]
[400296260,1767305431806,-150.0,0.00013305,2]
[400296262,1767305431815,-150.0,0.00013356,2]
[400296264,1767305431825,-150.0,0.00013425,2]
[400296265,1767305431835,-150.0,0.00013425,2]
[400296266,1767305431845,-150.0,0.00013521,2]
[400296267,1767305431855,-3240.0,0.0001354,2]
[400296268,1767305431865,-155.92,0.00013552,2]
[400296269,1767305431874,-150.0,0.00013562,2]
[400296270,1767305431884,-500.0,0.00013599,2]
[400296273,1767305431894,-6148.19,0.00013629,2]
[400296275,1767305431904,-150.0,0.00013664,2]
[400296276,1767305431913,-150.0,0.00013698,2]
[400296278,1767305431923,-947.49,0.00013699,2]
[400296280,1767305431933,-759.59,0.00013699,2]
[400296282,1767305431943,-150.0,0.00013767,2]
[400296284,1767305431953,-150.0,0.00013808,2]
[400296286,1767305431963,-150.0,0.00013904,2]
[400296288,1767305431973,-150.0,0.00013904,2]
[400296289,1767305431982,-150.0,0.00013973,2]
[400296290,1767305431993,-200.0,0.00014013,2]
[400296291,1767305432002,-150.0,0.00014024,2]
[400296292,1767305432012,-150.0,0.00014096,2]
[400296293,1767305432026,-288.49183579,0.00014143,2]
[400296294,1767305432036,-150.0,0.00014178,2]
[400296295,1767305432045,-48922.42969854,0.00014198,2]
[400296296,1767305432223,-394.17718249,0.00014198,2]
[400296297,1767305432235,-6815.12586,0.00014198,2]
[400296298,1767305432247,-1000.99,0.00014198,2]
[400296299,1767305432260,-527.69098567,0.00014198,2]
[400296300,1767305432272,-646.62018074,0.00014198,2]
[400296301,1767305432284,-407.74984699,0.00014198,2]
[400296302,1767305432295,-999.0,0.00014198,2]
[400296303,1767305432307,-999.0,0.00014198,2]
[400296309,1767305437642,-500.0,0.00014197,2]
[400296310,1767305437651,-158.47843359,0.00014197,2]
[400296311,1767305437664,-341.52156641,0.00014197,2]
[400296312,1767305437674,-104.96234616,0.00014197,2]
[400296313,1767305437685,-337.14583895,0.00014197,2]
[400296314,1767305437695,-500.0,0.00014197,2]
[400296315,1767305437705,-500.0,0.00014197,2]
[400296316,1767305437716,-500.0,0.00014197,2]
[400296317,1767305437725,-29876.03987103,0.00014198,2]
[400296318,1767305437738,-20724.17226292,0.00014198,2]
[400296319,1767305437749,-1505.50105769,0.00014198,2]
[400296320,1767305437760,-593.02810869,0.00014198,2]
[400296321,1767305437773,-13005.00999996,0.00014198,2]
[400296322,1767305437784,-639.8168967,0.00014198,2]
[400296323,1767305437929,-483560.51174858,0.00014198,2]
[400296324,1767305437939,-1155.50328866,0.00014199,2]
[400296325,1767305437953,-5542.22121134,0.00014199,2]
[400296326,1767305437963,-195.0,0.00014238,2]
[400296327,1767305437972,-300.0,0.00014238,2]
[400296328,1767305437982,-600.0,0.00014238,2]
[400296330,1767305437993,-600.0,0.00014238,2]
[400296333,1767305438002,-600.0,0.00014238,2]
[400296334,1767305438011,-195.0,0.00014238,2]
[400296336,1767305438021,-193.54993813,0.00014238,2]
[400296338,1767305438030,-2500.0,0.00014238,2]
[400296339,1767305438040,-2500.0,0.00014238,2]
[400296341,1767305438050,-300.0,0.00014238,2]
[400296343,1767305438059,-250.0,0.00014238,2]
[400296345,1767305438069,-2500.0,0.00014238,2]
[400296347,1767305438079,-2500.0,0.00014238,2]
[400296349,1767305438089,-600.0,0.00014238,2]
[400296352,1767305438099,-600.0,0.00014238,2]
[400296353,1767305438108,-195.0,0.00014238,2]
[400296355,1767305438118,-300.0,0.00014238,2]
[400296358,1767305438127,-300.0,0.00014238,2]
[400296360,1767305438136,-300.0,0.00014238,2]
[400296362,1767305438146,-300.0,0.00014238,2]
[400296375,1767305438394,-221.08481114,0.00014238,2]
[400296376,1767305438405,-2500.0,0.00014238,2]
[400296377,1767305438415,-195.0,0.00014238,2]
[400296378,1767305438425,-1680.0,0.00014239,2]
[400296379,1767305438434,-1632.216,0.00014298,2]
[400296380,1767305438444,-215.005,0.00014298,2]
[400296381,1767305438458,-33520.8529,0.00014299,2]
[400296382,1767305438467,-2500.0,0.00014299,2]
[400296383,1767305438477,-2611.21368321,0.00014339,2]
[400296384,1767305438486,-713.62157732,0.00014339,2]
[400296385,1767305438496,-500.0,0.00014373,2]
[400296386,1767305438505,-500.0,0.00014373,2]
[400296387,1767305438515,-500.0,0.00014373,2]
[400296388,1767305438524,-280.8195095,0.00014373,2]
[400296389,1767305438534,-5102.30663022,0.00014373,2]
[400296390,1767305438544,-3874.97124849,0.00014373,2]
[400296391,1767305438554,-150.0,0.00014384,2]
[400296392,1767305438563,-248.56713189,0.00014384,2]
[400296393,1767305438573,-150.0,0.00014384,2]
[400296394,1767305438583,-150.0,0.00014384,2]
[400296395,1767305438593,-150.0,0.00014384,2]
[400296396,1767305438603,-150.0,0.00014384,2]
[400296397,1767305438612,-150.0,0.00014384,2]
[400296398,1767305438622,-500.0,0.00014398,2]
[400296399,1767305438631,-500.0,0.00014398,2]
[400296400,1767305438640,-500.0,0.00014398,2]
[400296401,1767305438650,-601.12255009,0.00014398,2]
[400296402,1767305438659,-500.0,0.00014398,2]
[400296403,1767305438668,-502.98485599,0.00014398,2]
[400296404,1767305438678,-500.0,0.00014398,2]
[400296405,1767305438688,-526.72573723,0.00014398,2]
[400296406,1767305438697,-500.0,0.00014398,2]
[400296407,1767305438707,-523.32521325,0.00014398,2]
[400296408,1767305438716,-500.0,0.00014398,2]
[400296409,1767305438725,-500.0,0.00014398,2]
[400296410,1767305438735,-509.17147862,0.00014398,2]
[400296411,1767305438746,-510.19110019,0.00014398,2]
[400296412,1767305438755,-734.72,0.00014398,2]
[400296413,1767305438765,-566.603938,0.00014439,2]
[400296414,1767305438775,-24102.6136089,0.00014539,2]
[400296415,1767305438784,-16549.8534812,0.00014547,2]
[400296416,1767305438794,-9474.4532206,0.00014547,2]
[400296417,1767305438803,-2611.21368321,0.00014624,2]
[400296418,1767305438814,-734.72,0.00014672,2]
[400296419,1767305438824,-2300.0,0.00014753,2]
[400296420,1767305438833,-566.60393793,0.00014791,2]
[400296421,1767305438843,-166.66,0.000148,2]
[400296422,1767305438852,-2611.21368321,0.00014908,2]
[400296423,1767305438862,-734.72,0.00014946,2]
[400296424,1767305438872,-166.66,0.00015111,2]
[400296425,1767305438882,-566.60393793,0.00015142,2]
[400296426,1767305438892,-2611.21368321,0.00015193,2]
[400296427,1767305438902,-734.72,0.0001522,2]
[400296428,1767305438913,-6540.0,0.00015253,2]
[400296429,1767305438923,-3.86634393,0.00015275,2]
[400296430,1767305438932,-153.34,0.00015334,2]
[400296431,1767305438942,-166.66,0.00015423,2]
[400296432,1767305438952,-9193.56018947,0.00015477,2]
[400296433,1767305438962,-2611.21368321,0.00015477,2]
[400296434,1767305438972,-566.60393793,0.00015494,2]
[400296435,1767305438983,-734.72,0.00015494,2]
[400296436,1767305438994,-713.62157732,0.00015581,2]
[400296437,1767305439004,-2351.0,0.00015662,2]
[400296438,1767305439014,-1108.14,0.00015699,2]
[400296439,1767305439024,-166.66,0.00015734,2]
[400296440,1767305439034,-9193.56018947,0.00015762,2]
[400296441,1767305439044,-2611.21368321,0.00015762,2]
[400296442,1767305439053,-734.75830604,0.00015768,2]
[400296443,1767305439063,-566.60393793,0.00015845,2]
[400296444,1767305439073,-151.0,0.00015903,2]
[400296445,1767305439082,-151.0,0.00015903,2]
[400296446,1767305439092,-151.0,0.00015903,2]
[400296447,1767305439102,-166.66,0.00016046,2]
[400296448,1767305439112,-9193.56018947,0.00016046,2]
[400296449,1767305439121,-2611.21368321,0.00016046,2]
[400296450,1767305439131,-1108.14,0.00016123,2]
[400296451,1767305439140,-566.60393793,0.00016197,2]
[400296452,1767305439150,-9193.56018947,0.00016331,2]
[400296453,1767305439159,-2611.21368321,0.00016331,2]
[400296454,1767305439169,-166.66,0.00016358,2]
[400296455,1767305439178,-3692.7714577,0.00016389,2]
[400296456,1767305439187,-2114.0362644,0.00016389,2]
[400296457,1767305439197,-500.0,0.00016438,2]
[400296458,1767305439206,-468.78226426,0.00016438,2]
[400296459,1767305439216,-500.0,0.00016438,2]
[400296460,1767305439226,-500.0,0.00016438,2]
[400296461,1767305439236,-500.0,0.00016438,2]
[400296462,1767305439245,-500.0,0.00016438,2]
[400296463,1767305439255,-500.0,0.00016438,2]
[400296464,1767305439264,-3391.34,0.00016438,2]
[400296465,1767305439274,-168.0,0.0001649,2]
[400296466,1767305439283,-566.60393793,0.00016548,2]
[400296467,1767305439293,-9193.56018947,0.00016615,2]
[400296468,1767305439304,-2611.21368321,0.00016615,2]
[400296469,1767305439314,-2142.28224078,0.0001666,2]
[400296470,1767305439323,-150.0,0.00016699,2]
[400296471,1767305439333,-204.22488612,0.00016699,2]
[400296472,1767305439343,-296.61363209,0.00016699,2]
[400296473,1767305439352,-150.0,0.00016699,2]
[400296474,1767305439361,-150.0,0.00016754,2]
[400296475,1767305439371,-168.0,0.0001678,2]
[400296476,1767305439384,-1000.0,0.00016789,2]
[400296478,1767305439394,-823.9686867,0.000168,2]
[400296480,1767305439403,-471.7052502,0.000168,2]
[400296481,1767305439412,-150.0,0.00016809,2]
[400296482,1767305439423,-713.62157732,0.00016822,2]
[400296483,1767305439433,-462.2131,0.0001683,2]
[400296484,1767305439443,-168.0,0.00016842,2]
[400296485,1767305439453,-150.0,0.00016863,2]
[400296486,1767305439463,-278.42075138,0.00016899,2]
[400296487,1767305439472,-155.71050666,0.000169,2]
[400296488,1767305439482,-9193.56018947,0.000169,2]
[400296489,1767305439492,-566.60393793,0.000169,2]
[400296490,1767305439502,-291.49368952,0.000169,2]
[400296491,1767305439512,-2611.21368321,0.000169,2]
[400296492,1767305439522,-150.0,0.00016918,2]
[400296493,1767305439531,-5268.45,0.00016922,2]
[400296494,1767305439540,-6721.9,0.00016922,2]
[400296495,1767305439550,-7938.9,0.00016922,2]
[400296496,1767305439559,-5876.59,0.00016922,2]
[400296497,1767305439568,-2348.46,0.00016922,2]
[400296498,1767305439577,-150.99,0.00016922,2]
[400296499,1767305439587,-462.21311,0.0001693,2]
[400296500,1767305439597,-155.92,0.00016941,2]
[400296501,1767305439607,-500.0,0.00016973,2]
[400296502,1767305439617,-347.45119047,0.00016973,2]
[400296503,1767305439627,-500.0,0.00016973,2]
[400296504,1767305439637,-500.0,0.00016973,2]
[400296505,1767305439646,-500.0,0.00016973,2]
[400296506,1767305439655,-250.0,0.00016973,2]
[400296507,1767305439664,-150.0,0.00016973,2]
[400296508,1767305439673,-150.0,0.00016973,2]
[400296509,1767305439683,-170.39959468,0.0001699,2]
[400296510,1767305439692,-135421.1197939,0.00017,2]
[400296511,1767305439706,-330.47737862,0.00017,2]
[400296512,1767305439717,-35997.02057108,0.00017,2]
[400296513,1767305439728,-146170.8799,0.00017,2]
[400296514,1767305439739,-1070.77117254,0.00017,2]
[400296515,1767305439776,-198.06,0.00015691,2]
[400296516,1767305439786,-109317.7677554,0.00017,2]
[400296517,1767305439798,-1700.0,0.00017,2]
[400296518,1767305439809,-342.93822665,0.00017,2]
[400296519,1767305439820,-17667.63748949,0.00017,2]
[400296520,1767305439848,-83903.44329546,0.00017,2]
[400296538,1767305443504,-46.76651239,0.00017,2]
[400296690,1767305461398,500.0,0.00043178,120]
[400296691,1767305481099,10041.00271995,0.00043178,120]
[400296692,1767305744461,500.0,0.00043178,120]
[400296693,1767305744696,500.0,0.00043178,120]
[400296694,1767305744944,500.0,0.00043178,120]
[400296695,1767305745171,500.0,0.00043178,120]
[400296696,1767305745398,500.0,0.00043178,120]
[400296697,1767305762147,500.0,0.00043178,120]
[400296698,1767306061624,500.0,0.00043173,120]
[400296699,1767306251481,683.55,0.00043173,120]
[400296700,1767306252548,683.55,0.00043173,120]
[400296701,1767306253382,683.55,0.00043173,120]
[400296702,1767306254185,683.55,0.00043173,120]
[400296703,1767306255363,683.55,0.00043173,120]
[400296704,1767306256449,683.55,0.00043173,120]
[400296705,1767306257403,683.55,0.00043173,120]
[400296706,1767306257776,683.55,0.00043173,120]
[400296707,1767306258157,683.55,0.00043173,120]
[400296708,1767306258397,683.55,0.00043173,120]
[400296709,1767306258630,683.55,0.00043173,120]
[400296710,1767306258853,683.55,0.00043173,120]
[400296711,1767306259085,683.55,0.00043173,120]
[400296712,1767306259611,683.55,0.00043173,120]
[400296713,1767306259854,683.55,0.00043173,120]
[400296714,1767306260130,683.55,0.00043173,120]
[400296715,1767306260368,683.55,0.00043173,120]
[400296716,1767306260639,683.55,0.00043173,120]
[400296717,1767306260881,683.55,0.00043173,120]
[400296718,1767306261304,683.55,0.00043173,120]
[400296719,1767306261561,683.55,0.00043173,120]
[400296720,1767306261790,683.55,0.00043173,120]
[400296721,1767306262013,683.55,0.00043173,120]
[400296722,1767306262282,683.55737128,0.00043173,120]
[400296724,1767306357715,999.0,0.00013154,3]
[400296726,1767306361890,500.0,0.00043173,120]
[400296741,1767306631728,-338.87,0.00012574,2]
[400296742,1767306631738,-3075.53254258,0.000126,2]
[400296743,1767306631748,-1247.07,0.00012645,2]
[400296744,1767306631758,-1000.0,0.00012671,2]
[400296745,1767306631768,-228.0,0.00012671,2]
[400296746,1767306631778,-300.0,0.00012671,2]
[400296747,1767306631788,-300.0,0.00012671,2]
[400296748,1767306631798,-1200.0,0.00012671,2]
[400296749,1767306631807,-150.0,0.00012671,2]
[400296750,1767306631817,-500.0,0.00012672,2]
[400296751,1767306631828,-383.82485452,0.00012672,2]
[400296752,1767306631839,-500.0,0.00012672,2]
[400296753,1767306631848,-212.73729775,0.00012672,2]
[400296754,1767306631858,-500.0,0.00012672,2]
[400296755,1767306631868,-500.0,0.00012672,2]
[400296756,1767306631878,-500.0,0.00012672,2]
[400296757,1767306631888,-500.0,0.00012672,2]
[400296758,1767306631898,-500.0,0.00012672,2]
[400296759,1767306631908,-500.0,0.00012672,2]
[400296760,1767306631917,-500.0,0.00012672,2]
[400296761,1767306631927,-500.0,0.00012672,2]
[400296762,1767306631937,-479.43426517,0.00012672,2]
[400296763,1767306631946,-500.0,0.00012672,2]
[400296764,1767306631956,-500.0,0.00012672,2]
[400296765,1767306631970,-500.0,0.00012672,2]
[400296766,1767306631979,-500.0,0.00012672,2]
[400296767,1767306631989,-500.0,0.00012672,2]
[400296768,1767306631999,-500.0,0.00012672,2]
[400296769,1767306632009,-500.0,0.00012672,2]
[400296770,1767306632019,-500.0,0.00012672,2]
[400296772,1767306632029,-500.0,0.00012672,2]
[400296775,1767306632046,-500.0,0.00012672,2]
[400296776,1767306632055,-500.0,0.00012672,2]
[400296779,1767306632065,-500.0,0.00012672,2]
[400296781,1767306632075,-500.0,0.00012672,2]
[400296783,1767306632085,-500.0,0.00012672,2]
[400296785,1767306632094,-500.0,0.00012672,2]
[400296787,1767306632104,-500.0,0.00012672,2]
[400296790,1767306632114,-500.0,0.00012672,2]
[400296793,1767306632124,-500.0,0.00012672,2]
[400296796,1767306632134,-609.5398907,0.00012672,2]
[400296799,1767306632144,-609.5398907,0.00012672,2]
[400296802,1767306632154,-609.5398907,0.00012672,2]
[400296805,1767306632164,-609.5398907,0.00012672,2]
[400296808,1767306632174,-609.5398907,0.00012672,2]
[400296810,1767306632184,-609.5398907,0.00012672,2]
[400296814,1767306632195,-609.5398907,0.00012672,2]
[400296816,1767306632204,-609.5398907,0.00012672,2]
[400296817,1767306632214,-609.5398907,0.00012672,2]
[400296818,1767306632224,-609.5398907,0.00012672,2]
[400296819,1767306632234,-609.5398907,0.00012672,2]
[400296820,1767306632244,-609.5398907,0.00012672,2]
[400296821,1767306632254,-609.5398907,0.00012672,2]
[400296822,1767306632264,-609.5398907,0.00012672,2]
[400296823,1767306632274,-609.5398907,0.00012672,2]
[400296824,1767306632284,-609.5398907,0.00012672,2]
[400296825,1767306632295,-609.5398907,0.00012672,2]
[400296826,1767306632305,-609.5398907,0.00012672,2]
[400296827,1767306632315,-609.5398907,0.00012672,2]
[400296828,1767306632324,-609.5398907,0.00012672,2]
[400296829,1767306632334,-609.5398907,0.00012672,2]
[400296830,1767306632344,-609.5398907,0.00012672,2]
[400296831,1767306632354,-609.5398907,0.00012672,2]
[400296832,1767306632363,-609.5398907,0.00012672,2]
[400296833,1767306632373,-609.5398907,0.00012672,2]
[400296834,1767306632383,-609.5398907,0.00012672,2]
[400296835,1767306632397,-609.5398907,0.00012672,2]
[400296836,1767306632407,-609.5398907,0.00012672,2]
[400296837,1767306632417,-609.5398907,0.00012672,2]
[400296838,1767306632427,-609.5398907,0.00012672,2]
[400296839,1767306632436,-609.5398907,0.00012672,2]
[400296840,1767306632445,-609.5398907,0.00012672,2]
[400296841,1767306632455,-609.5398907,0.00012672,2]
[400296842,1767306632465,-609.5398907,0.00012672,2]